bitfinex/quotes_SOLUSD_20241111
["timestamp","ask_amount","ask_price","bid_price","bid_amount"]
[1731322859058,26.98209483,215.7,215.62,26.98209483]
[1731322859264,26.98209483,215.68,215.61,26.98209483]
[1731322859466,26.98209483,215.67,215.59,33.07079483]
[1731322859667,26.98209483,215.68,215.61,26.98209483]
[1731322859867,26.98209483,215.7,215.62,26.98209483]
[1731322860062,26.98209483,215.71,215.64,26.98209483]
[1731322860457,26.98209483,215.73,215.66,26.98209483]
[1731322860667,26.98209483,215.72,215.65,26.98209483]
[1731322860872,26.98209483,215.74,215.66,26.98209483]
[1731322861055,26.98209483,215.74,215.67,26.98209483]
[1731322861474,26.98209483,215.75,215.68,26.98209483]
[1731322861778,26.98209483,215.76,215.69,26.98209483]
[1731322861981,26.98209483,215.76,215.68,26.98209483]
[1731322862363,26.98209483,215.75,215.68,26.98209483]
[1731322863272,26.98209483,215.75,215.67,26.98209483]
[1731322863472,26.98209483,215.71,215.63,26.98209483]
[1731322863671,20.0739,215.77,215.62,26.98209483]
[1731322863672,26.98209483,215.69,215.62,26.98209483]
[1731322863871,26.98209483,215.71,215.64,26.98209483]
[1731322864076,4.6349,215.75,215.63,26.98209483]
[1731322864077,26.98209483,215.7,215.63,26.98209483]
[1731322864379,26.98209483,215.67,215.6,26.98209483]
[1731322864558,26.98209483,215.66,215.59,33.07079483]
[1731322865275,26.98209483,215.67,215.59,26.98209483]
[1731322865580,26.98209483,215.66,215.59,26.98209483]
[1731322865777,26.98209483,215.67,215.6,26.98209483]
[1731322866290,26.98209483,215.66,215.59,26.98209483]
[1731322867874,4.6365,215.68,215.56,6.22645354]
[1731322867875,26.98209483,215.68,215.6,26.98209483]
[1731322868073,26.98209483,215.68,215.61,26.98209483]
[1731322868474,26.98209483,215.68,215.6,26.98209483]
[1731322868475,31.61859483,215.68,215.6,26.98209483]
[1731322869376,26.98209483,215.67,215.59,26.98209483]
[1731322869780,26.98209483,215.67,215.56,6.22645354]
[1731322869781,26.98209483,215.67,215.6,26.98209483]
[1731322869980,26.98209483,215.7,215.62,26.98209483]
[1731322870279,26.98209483,215.7,215.63,26.98209483]
[1731322870489,26.98209483,215.7,215.64,23.776884]
[1731322871002,26.98209483,215.71,215.64,50.75897883]
[1731322871360,6.5976,215.75,215.65,26.98209483]
[1731322871361,26.98209483,215.72,215.65,26.98209483]
[1731322871684,11.2327,215.75,215.64,23.776884]
[1731322871685,26.98209483,215.7,215.64,23.776884]
[1731322872065,26.98209483,215.71,215.64,50.75897883]
[1731322872767,26.98209483,215.72,215.64,50.75897883]
[1731322873263,6.5976,215.75,215.64,50.75897883]
[1731322873264,26.98209483,215.7,215.64,23.776884]
[1731322873469,26.98209483,215.69,215.64,23.776884]
[1731322873782,26.98209483,215.69,215.62,23.776884]
[1731322873968,26.98209483,215.7,215.62,50.75897883]
[1731322874172,26.98209483,215.71,215.65,23.776884]
[1731322874490,26.98209483,215.72,215.65,23.776884]
[1731322874781,26.98209483,215.66,215.56,6.22645354]
[1731322874966,26.98209483,215.63,215.54,26.98209483]
[1731322875160,26.98209483,215.61,215.54,26.98209483]
[1731322875484,26.98209483,215.63,215.54,26.98209483]
[1731322875665,26.98209483,215.63,215.56,26.98209483]
[1731322876383,26.98209483,215.62,215.54,26.98209483]
[1731322877780,26.98209483,215.62,215.55,23.776884]
[1731322878395,26.98209483,215.61,215.55,23.776884]
[1731322878594,26.98209483,215.59,215.52,26.98209483]
[1731322878879,26.98209483,215.55,215.48,27.33209483]
[1731322879075,26.98209483,215.51,215.48,0.35]
[1731322879470,26.98209483,215.5,215.48,0.35]
[1731322879873,11.5962,215.59,215.48,0.35]
[1731322879874,26.98209483,215.49,215.48,0.35]
[1731322880473,15.432,215.54,215.48,0.35]
[1731322880474,26.98209483,215.5,215.48,0.35]
[1731322881886,26.98209483,215.49,215.48,0.35]
[1731322882286,26.98209483,215.51,215.48,0.35]
[1731322882588,26.98209483,215.53,215.48,0.35]
[1731322884072,26.98209483,215.54,215.48,0.35]
[1731322884972,26.98209483,215.56,215.49,23.776884]
[1731322885169,26.98209483,215.57,215.51,23.776884]
[1731322885387,26.98209483,215.58,215.51,50.75897883]
[1731322885795,26.98209483,215.57,215.51,23.776884]
[1731322885975,0.08572601,215.52,215.5,23.776884]
[1731322886393,0.08572601,215.52,215.5,50.75897883]
[1731322887099,0.08572601,215.52,215.51,26.98209483]
[1731322887402,0.08572601,215.52,215.51,50.75897883]
[1731322888895,0.10034658,215.56,215.51,50.75897883]
[1731322888896,4.6374,215.64,215.51,50.75897883]
[1731322889095,26.98209483,215.61,215.54,23.776884]
[1731322889479,26.98209483,215.62,215.54,50.75897883]
[1731322890699,26.98209483,215.65,215.59,23.776884]
[1731322891198,26.98209483,215.6,215.53,26.98209483]
[1731322891497,26.98209483,215.62,215.54,50.75897883]
[1731322892082,26.98209483,215.61,215.54,23.776884]
[1731322892281,26.98209483,215.58,215.52,23.776884]
[1731322892702,26.98209483,215.58,215.51,23.776884]
[1731322893495,26.98209483,215.58,215.51,50.75897883]
[1731322893711,26.98209483,215.59,215.53,23.776884]
[1731322894202,26.98209483,215.61,215.53,50.75897883]
[1731322894394,4.6379,215.62,215.53,50.75897883]
[1731322894395,26.98209483,215.6,215.53,50.75897883]
[1731322895193,26.98209483,215.6,215.48,0.35]
[1731322895194,26.98209483,215.59,215.52,23.776884]
[1731322895390,26.98209483,215.59,215.52,50.75897883]
[1731322896804,16.89572718,215.59,215.52,40.67261118]
[1731322897103,16.89572718,215.6,215.52,40.67261118]
[1731322897586,16.89572718,215.59,215.52,40.67261118]
[1731322897786,16.89572718,215.59,215.52,23.776884]
[1731322898087,16.89572718,215.53,215.48,0.35]
[1731322898280,16.89572718,215.51,215.48,0.35]
[1731322898903,27.05272181,215.51,215.48,0.35]
[1731322900985,27.05272181,215.55,215.48,0.35]
[1731322901214,27.05272181,215.55,215.48,24.126884]
[1731322901615,4.638,215.61,215.48,24.126884]
[1731322901616,27.05272181,215.53,215.48,0.35]
[1731322901919,27.05272181,215.49,215.48,0.35]
[1731322903200,31.69322181,215.49,215.48,0.35]
[1731322903717,27.05272181,215.49,215.48,0.35]
[1731322905502,47.05272181,215.49,215.48,0.35]
[1731322905794,20.1,215.48,215.31,43.70132181]
[1731322905997,0.09792155,215.32,215.31,16.6486]
[1731322906203,0.09792155,215.32,215.3,33.13382181]
[1731322906204,0.09792155,215.32,215.3,6.0811]
[1731322906392,0.09792155,215.32,215.26,27.05272181]
[1731322906804,27.05272181,215.29,215.25,6.0811]
[1731322907010,27.05272181,215.26,215.23,46.253438]
[1731322907220,27.05272181,215.24,215.23,44.396]
[1731322908997,27.05272181,215.31,215.24,23.776884]
[1731322909201,27.05272181,215.3,215.24,23.776884]
[1731322909513,27.05272181,215.26,215.23,44.396]
[1731322909710,0.1,215.31,215.23,44.396]
[1731322910514,24.74232155,215.32,215.23,44.396]
[1731322910724,4.74232155,215.32,215.23,44.396]
[1731322911008,27.05272181,215.24,215.23,44.396]
[1731322911415,4.74232155,215.32,215.23,44.396]
[1731322911416,27.05272181,215.25,215.23,44.396]
[1731322911596,27.05272181,215.26,215.23,44.396]
[1731322911794,27.05272181,215.27,215.23,44.396]
[1731322912204,27.05272181,215.24,215.23,44.396]
[1731322912596,27.05272181,215.25,215.23,44.396]
[1731322912798,27.05272181,215.24,215.23,44.396]
[1731322914814,27.05272181,215.25,215.23,44.396]
[1731322915017,27.05272181,215.27,215.23,44.396]
[1731322915321,0.09792155,215.32,215.25,27.05272181]
[1731322916816,0.09792155,215.32,215.28,27.05272181]
[1731322917228,0.09792155,215.32,215.29,27.05272181]
[1731322917922,0.09792155,215.32,215.3,27.05272181]
[1731322918104,0.09792155,215.32,215.31,27.05272181]
[1731322918301,0.09792155,215.32,215.3,27.05272181]
[1731322919416,0.09792155,215.32,215.31,50.82960581]
[1731322919623,0.09792155,215.32,215.31,23.776884]
[1731322919959,0.09792155,215.32,215.31,50.82960581]
[1731322922606,0.09792155,215.32,215.31,23.776884]
[1731322922813,0.09792155,215.32,215.31,50.82960581]
[1731322924414,0.09792155,215.32,215.28,27.05272181]
[1731322924806,27.05272181,215.3,215.23,44.396]
[1731322925315,27.15064336,215.32,215.24,27.05272181]
[1731322925700,27.05272181,215.32,215.24,27.05272181]
[1731322925899,31.69702181,215.32,215.24,27.05272181]
[1731322926114,27.05272181,215.3,215.23,44.396]
[1731322928525,27.05272181,215.32,215.25,23.776884]
[1731322929611,27.05272181,215.28,215.23,44.396]
[1731322930216,27.05272181,215.29,215.23,44.396]
[1731322930411,27.05272181,215.24,215.23,44.396]
[1731322932521,51.69862181,215.24,215.23,44.396]
[1731322933027,60.99810468,215.24,215.23,44.396]
[1731322933321,0.1,215.22,215.05,6.5721]
[1731322933523,26.2453,215.23,215.05,6.5721]
[1731322933524,27.05272181,215.12,215.05,6.5721]
[1731322934907,27.05272181,215.12,215.04,27.05272181]
[1731322935422,27.05272181,215.13,215.05,27.05272181]
[1731322935618,27.05272181,215.14,215.07,27.05272181]
[1731322935818,27.05272181,215.13,215.06,27.05272181]
[1731322936012,27.05272181,215.13,215.05,27.05272181]
[1731322936624,27.05272181,215.15,215.07,27.05272181]
[1731322936933,27.05272181,215.12,215.02,27.05272181]
[1731322937432,27.05272181,215.12,215.0,6.6568]
[1731322937817,62.43062181,215.12,214.93,18.598196]
[1731322938004,68.34152181,215.12,215.11,41.41349866]
[1731322938731,46.97912181,215.12,215.11,41.41349866]
[1731322939613,27.05272181,215.13,215.11,41.41349866]
[1731322939825,27.05272181,215.14,215.11,41.41349866]
[1731322940331,11.0036,215.22,215.11,41.41349866]
[1731322940511,27.05272181,215.16,215.11,41.41349866]
[1731322940709,27.05272181,215.18,215.11,41.41349866]
[1731322940909,27.05272181,215.18,215.12,23.776884]
[1731322941130,27.05272181,215.21,215.13,27.05272181]
[1731322941340,27.05272181,215.22,215.14,27.05272181]
[1731322941525,15.4188,215.25,215.13,27.05272181]
[1731322941526,27.05272181,215.21,215.13,27.05272181]
[1731322941730,27.05272181,215.22,215.14,50.82960581]
[1731322942026,27.05272181,215.22,215.16,23.776884]
[1731322942329,4.6455,215.26,215.12,23.776884]
[1731322942330,27.05272181,215.17,215.12,23.776884]
[1731322943825,27.05272181,215.13,215.11,41.41349866]
[1731322944225,27.05272181,215.12,215.11,41.41349866]
[1731322944533,27.05272181,215.13,215.11,41.41349866]
[1731322944732,27.05272181,215.12,215.11,41.41349866]
[1731322945039,27.05272181,215.14,215.11,41.41349866]
[1731322945213,27.05272181,215.16,215.11,41.41349866]
[1731322945410,27.05272181,215.2,215.12,50.82960581]
[1731322945921,31.69962181,215.2,215.12,50.82960581]
[1731322946429,27.05272181,215.21,215.14,50.82960581]
[1731322946613,27.05272181,215.22,215.16,23.776884]
[1731322946817,27.05272181,215.23,215.16,50.82960581]
[1731322947221,27.05272181,215.22,215.16,23.776884]
[1731322947434,6.5092,215.29,215.16,50.82960581]
[1731322947435,27.05272181,215.23,215.16,50.82960581]
[1731322947634,27.05272181,215.22,215.16,23.776884]
[1731322949034,31.69892181,215.23,215.16,23.776884]
[1731322949739,27.05272181,215.23,215.16,50.82960581]
[1731322949969,27.05272181,215.24,215.18,27.05272181]
[1731322950115,27.05272181,215.25,215.19,23.776884]
[1731322950320,27.05272181,215.26,215.19,23.776884]
[1731322950521,27.05272181,215.25,215.19,23.776884]
[1731322951322,27.05272181,215.24,215.19,23.776884]
[1731322951539,27.05272181,215.23,215.16,27.05272181]
[1731322951761,27.05272181,215.21,215.16,23.776884]
[1731322951933,27.05272181,215.23,215.16,50.82960581]
[1731322952243,4.646,215.24,215.16,23.776884]
[1731322952244,27.05272181,215.21,215.16,23.776884]
[1731322952625,27.05272181,215.18,215.12,16.0864]
[1731322952846,27.05272181,215.18,215.11,68.46622047]
[1731322953042,4.646,215.24,215.11,41.41349866]
[1731322953043,27.05272181,215.17,215.11,41.41349866]
[1731322954043,27.05272181,215.13,215.11,41.41349866]
[1731322954246,27.05272181,215.12,215.11,41.41349866]
[1731322960645,27.05272181,215.13,215.11,41.41349866]
[1731322960851,27.05272181,215.12,215.11,41.41349866]
[1731322964827,47.15272181,215.12,215.11,38.30509866]
[1731322965047,47.05272181,215.12,215.11,38.30509866]
[1731322965354,0.1,215.1,214.9,0.1]
[1731322965549,0.1,215.1,214.94,27.05272181]
[1731322965550,27.05272181,215.02,214.94,27.05272181]
[1731322965754,27.05272181,215.03,214.95,27.05272181]
[1731322966054,27.05272181,215.03,214.96,27.05272181]
[1731322966253,27.05272181,215.04,214.96,27.05272181]
[1731322966546,27.05272181,215.04,214.97,27.05272181]
[1731322967141,4.6497,215.07,214.98,27.05272181]
[1731322967344,27.05272181,215.03,214.9,1.77997071]
[1731322967647,27.05272181,215.04,214.97,50.82960581]
[1731322968028,27.05272181,215.02,214.96,23.776884]
[1731322968227,27.05272181,215.04,214.96,50.82960581]
[1731322968746,27.05272181,215.05,214.99,23.776884]
[1731322969552,20.0,215.11,214.99,23.776884]
[1731322969553,27.05272181,215.08,215.01,50.82960581]
[1731322969729,27.05272181,215.06,215.01,23.776884]
[1731322969926,27.05272181,215.06,215.0,23.776884]
[1731322970450,27.05272181,215.07,215.0,50.82960581]
[1731322970625,27.05272181,215.08,215.0,50.82960581]
[1731322970829,27.05272181,215.09,215.0,23.776884]
[1731322971029,27.05272181,215.08,215.02,23.776884]
[1731322971448,27.05272181,215.06,215.0,23.776884]
[1731322971832,27.05272181,215.07,215.0,23.776884]
[1731322972029,27.05272181,215.09,215.01,27.05272181]
[1731322972233,27.05272181,215.09,215.02,23.776884]
[1731322972845,16.98429357,215.06,214.99,16.98429357]
[1731322973028,16.98429357,215.06,214.94,0.1]
[1731322973029,16.98429357,215.06,214.98,16.98429357]
[1731322973229,16.98429357,215.06,214.99,16.98429357]
[1731322973424,16.98429357,215.06,214.98,16.98429357]
[1731322973952,16.98429357,215.05,214.98,16.98429357]
[1731322974247,16.98429357,215.03,214.95,16.98429357]
[1731322974737,0.1,215.1,214.94,27.1789867]
[1731322974943,27.1789867,215.02,214.94,27.1789867]
[1731322975327,27.1789867,215.03,214.95,27.1789867]
[1731322975732,27.1789867,215.03,214.96,23.776884]
[1731322976231,27.1789867,215.05,214.98,23.776884]
[1731322977354,31.8290867,215.05,214.98,23.776884]
[1731322977535,27.1789867,215.03,214.98,23.776884]
[1731322978141,27.1789867,215.03,214.93,22.7903]
[1731322978142,27.1789867,215.03,214.96,23.776884]
[1731322978852,27.1789867,215.03,214.97,23.776884]
[1731322979551,27.1789867,215.04,214.97,50.9558707]
[1731322979852,27.1789867,215.05,214.99,23.776884]
[1731322980057,27.1789867,215.04,214.97,50.9558707]
[1731322980351,27.1789867,215.05,214.98,27.1789867]
[1731322980557,27.1789867,215.05,214.99,23.776884]
[1731322981049,27.1789867,215.07,214.99,50.9558707]
[1731322981236,27.1789867,215.07,215.0,27.1789867]
[1731322981438,27.1789867,215.07,214.99,50.9558707]
[1731322981632,27.1789867,215.06,214.99,23.776884]
[1731322982056,27.1789867,215.04,214.99,23.776884]
[1731322982358,27.1789867,215.04,214.97,23.776884]
[1731322983641,31.8291867,215.05,214.97,50.9558707]
[1731322983851,31.8291867,215.05,214.99,23.776884]
[1731322984765,31.8291867,215.05,214.98,23.776884]
[1731322985734,27.1789867,215.07,215.0,50.9558707]
[1731322985956,27.1789867,215.07,215.01,23.776884]
[1731322986169,27.1789867,215.05,214.93,22.7903]
[1731322986453,27.1789867,215.06,214.98,27.1789867]
[1731322986757,27.1789867,215.06,214.99,23.776884]
[1731322989164,31.8288867,215.06,214.99,23.776884]
[1731322989637,27.1789867,215.04,214.99,23.776884]
[1731322989841,27.1789867,215.04,214.96,27.1789867]
[1731322989842,27.1789867,215.04,214.97,23.776884]
[1731322990548,27.1789867,215.02,214.94,27.1789867]
[1731322990733,31.8297867,215.02,214.94,27.1789867]
[1731322991458,31.8297867,215.02,214.93,16.4627]
[1731322991459,27.1789867,214.98,214.93,16.4627]
[1731322992659,27.1789867,214.98,214.94,23.776884]
[1731322993161,27.1789867,214.99,214.94,23.776884]
[1731322993341,27.1789867,214.98,214.94,23.776884]
[1731322993539,27.1789867,214.95,214.87,32.19096225]
[1731322993750,27.1789867,214.95,214.88,27.1789867]
[1731322993958,27.1789867,214.96,214.88,27.1789867]
[1731322994164,27.1789867,214.98,214.91,27.1789867]
[1731322994338,27.1789867,215.04,214.84,1.68777429]
[1731322994339,27.1789867,214.97,214.9,27.1789867]
[1731322994659,27.1789867,214.97,214.84,1.68777429]
[1731322994660,27.1789867,214.99,214.91,27.1789867]
[1731322994837,27.1789867,215.0,214.92,27.1789867]
[1731322995042,27.1789867,214.98,214.9,27.1789867]
[1731322995344,27.1789867,214.96,214.88,27.1789867]
[1731322995544,27.1789867,214.95,214.87,27.1789867]
[1731322995747,27.1789867,214.94,214.86,27.1789867]
[1731322995948,27.1789867,214.95,214.87,27.1789867]
[1731322996443,27.1789867,214.96,214.88,27.1789867]
[1731322996853,16.99665032,214.96,214.88,16.99665032]
[1731322997248,16.99665032,214.96,214.89,23.776884]
[1731322997764,16.99665032,214.95,214.88,23.776884]
[1731322997966,16.99665032,214.96,214.88,40.77353432]
[1731322998145,16.99665032,214.94,214.88,23.776884]
[1731322999044,16.99665032,214.94,214.87,23.776884]
[1731322999645,16.99665032,214.93,214.87,23.776884]
[1731322999863,0.1,215.01,214.87,23.776884]
[1731322999864,16.99665032,214.9,214.87,23.776884]
[1731323000160,16.99665032,214.9,214.83,16.99665032]
[1731323000745,16.99665032,214.93,214.85,16.99665032]
[1731323000950,16.99665032,214.93,214.86,16.99665032]
[1731323001152,16.99665032,214.94,214.87,16.99665032]
[1731323001553,16.99665032,214.94,214.79,1.67734444]
[1731323001554,16.99665032,214.88,214.69,22.4745]
[1731323001766,0.1,214.91,214.73,16.99665032]
[1731323001767,16.99665032,214.81,214.73,16.99665032]
[1731323001965,16.99665032,214.81,214.69,22.3745]
[1731323002263,11.6343,214.89,214.71,0.1]
[1731323002496,16.99665032,214.84,214.76,16.99665032]
[1731323002853,16.99665032,214.84,214.72,5.32348349]
[1731323003055,16.99665032,214.84,214.76,16.99665032]
[1731323003250,16.99665032,214.86,214.78,16.99665032]
[1731323003450,16.99665032,214.88,214.8,16.99665032]
[1731323003659,16.99665032,214.92,214.84,16.99665032]
[1731323003871,16.99665032,214.94,214.86,16.99665032]
[1731323004368,16.99665032,214.96,214.88,16.99665032]
[1731323004574,16.99665032,214.96,214.88,23.776884]
[1731323004758,16.99665032,214.94,214.88,23.776884]
[1731323005952,21.64915032,214.94,214.88,23.776884]
[1731323006158,33.4243,215.0,214.88,23.776884]
[1731323006159,16.99665032,214.96,214.88,23.776884]
[1731323006769,16.99665032,214.93,214.82,8.31743493]
[1731323007079,16.99665032,214.91,214.84,16.99665032]
[1731323008176,21.64975032,214.91,214.83,23.776884]
[1731323008666,16.99665032,214.89,214.82,23.65075032]
[1731323009260,16.99665032,214.89,214.82,6.6541]
[1731323009567,16.99665032,214.89,214.8,22.22013381]
[1731323009781,16.99665032,214.86,214.79,33.29175032]
[1731323010354,16.99665032,214.87,214.79,33.29175032]
[1731323010880,16.99665032,214.9,214.83,16.99665032]
[1731323011056,16.99665032,214.9,214.84,23.776884]
[1731323011362,16.99665032,214.89,214.83,23.776884]
[1731323011772,16.99665032,214.89,214.82,16.99665032]
[1731323011974,16.99665032,214.89,214.83,23.776884]
[1731323012288,16.99665032,214.89,214.82,23.776884]
[1731323012763,6.1155,214.88,214.7,0.1]
[1731323012957,16.99665032,214.82,214.74,16.99665032]
[1731323013154,16.99665032,214.84,214.76,16.99665032]
[1731323013352,6.1436,214.96,214.8,32.98855032]
[1731323013561,16.99665032,214.92,214.84,16.99665032]
[1731323013758,16.99665032,214.9,214.82,16.99665032]
[1731323014360,16.99665032,214.92,214.84,16.99665032]
[1731323014557,16.99665032,214.92,214.85,23.776884]
[1731323015356,6.1436,214.96,214.85,23.776884]
[1731323015357,16.99665032,214.94,214.86,16.99665032]
[1731323015687,16.99665032,214.94,214.85,23.776884]
[1731323015688,16.99665032,214.96,214.89,23.776884]
[1731323015861,4.6508,215.02,214.93,23.776884]
[1731323016062,16.99665032,214.99,214.93,23.776884]
[1731323016776,16.99665032,215.01,214.93,23.776884]
[1731323016981,6.2266,215.06,214.95,40.77353432]
[1731323016982,16.99665032,215.02,214.95,40.77353432]
[1731323017280,16.2544,215.1,214.98,23.776884]
[1731323017281,16.99665032,215.05,214.98,23.776884]
[1731323017478,16.99665032,215.05,214.98,40.77353432]
[1731323017686,16.99665032,215.06,214.98,40.77353432]
[1731323017866,16.99665032,215.07,214.99,16.99665032]
[1731323018070,4.649,215.1,214.98,23.776884]
[1731323018071,16.99665032,215.02,214.98,23.776884]
[1731323018271,16.99665032,215.02,214.96,23.776884]
[1731323018489,16.99665032,215.01,214.96,23.776884]
[1731323018665,16.99665032,215.01,214.95,23.776884]
[1731323018979,16.99665032,214.99,214.93,23.776884]
[1731323019189,4.6505,215.03,214.93,23.776884]
[1731323019190,16.99665032,214.97,214.93,23.776884]
[1731323019686,16.99665032,214.99,214.93,23.776884]
[1731323020871,16.99665032,215.0,214.93,23.776884]
[1731323021181,16.99665032,215.02,214.95,23.776884]
[1731323021383,4.81991828,215.15,215.14,0.1]
[1731323021684,1.64608179,215.2,215.17,0.1]
[1731323021889,22.1053,215.38,215.17,0.1]
[1731323021890,16.99665032,215.37,215.19,16.99665032]
[1731323022060,16.99665032,215.37,215.28,23.776884]
[1731323022379,6.1315,215.44,215.36,23.776884]
[1731323022579,6.1315,215.44,215.37,16.99665032]
[1731323022880,21.63785032,215.46,215.36,23.776884]
[1731323022881,16.99665032,215.46,215.39,16.99665032]
[1731323023083,4.8153614,215.51,215.39,16.99665032]
[1731323023084,16.99665032,215.48,215.4,23.776884]
[1731323023378,16.99665032,215.5,215.42,23.776884]
[1731323023782,16.99665032,215.5,215.43,16.99665032]
[1731323024083,16.99665032,215.5,215.42,23.776884]
[1731323024262,16.99665032,215.5,215.41,23.776884]
[1731323024887,27.06417132,215.49,215.41,50.84105532]
[1731323025680,27.06417132,215.49,215.41,27.06417132]
[1731323025980,27.06417132,215.47,215.39,27.06417132]
[1731323026179,4.6405,215.5,215.36,23.776884]
[1731323026180,27.06417132,215.45,215.37,27.06417132]
[1731323026387,27.06417132,215.43,215.35,27.06417132]
[1731323027870,27.06417132,215.45,215.37,27.06417132]
[1731323029565,27.06417132,215.45,215.36,23.776884]
[1731323029761,27.06417132,215.44,215.37,27.06417132]
[1731323030485,27.06417132,215.42,215.35,27.06417132]
[1731323030871,27.06417132,215.43,215.35,27.06417132]
[1731323031071,27.06417132,215.42,215.35,27.06417132]
[1731323031272,27.06417132,215.42,215.34,27.06417132]
[1731323031893,27.06417132,215.43,215.35,27.06417132]
[1731323032068,27.06417132,215.42,215.34,27.06417132]
[1731323032875,31.70567132,215.45,215.37,27.06417132]
[1731323033073,27.06417132,215.44,215.37,27.06417132]
[1731323033469,31.70567132,215.45,215.37,27.06417132]
[1731323034280,31.70567132,215.45,215.31,0.1]
[1731323034281,27.06417132,215.4,215.31,27.06417132]
[1731323034787,27.06417132,215.38,215.31,27.06417132]
[1731323035380,27.06417132,215.38,215.3,27.06417132]
[1731323035580,27.06417132,215.38,215.31,23.776884]
[1731323036481,27.06417132,215.43,215.36,23.776884]
[1731323036788,27.06417132,215.45,215.38,50.84105532]
[1731323037386,27.06417132,215.44,215.38,23.776884]
[1731323037592,27.06417132,215.44,215.37,23.776884]
[1731323037973,27.06417132,215.44,215.37,50.84105532]
[1731323038183,27.06417132,215.45,215.37,50.84105532]
[1731323038383,27.06417132,215.44,215.37,50.84105532]
[1731323038667,27.06417132,215.39,215.23,0.1]
[1731323038872,27.06417132,215.37,215.29,27.06417132]
[1731323039477,27.06417132,215.35,215.29,27.06417132]
[1731323039668,27.06417132,215.35,215.27,27.06417132]
[1731323039874,31.70787132,215.35,215.27,27.06417132]
[1731323040181,27.06417132,215.33,215.25,27.06417132]
[1731323040492,4.6437,215.35,215.23,6.94513991]
[1731323040493,27.06417132,215.31,215.23,27.06417132]
[1731323041882,31.70877132,215.31,215.23,27.06417132]
[1731323042079,27.06417132,215.33,215.26,23.776884]
[1731323042778,31.70737132,215.37,215.29,27.06417132]
[1731323042974,31.70737132,215.37,215.28,23.776884]
[1731323042975,27.06417132,215.39,215.32,23.776884]
[1731323043795,31.70697132,215.39,215.32,23.776884]
[1731323044979,27.06417132,215.4,215.33,26.41007973]
[1731323045176,27.06417132,215.4,215.34,23.776884]
[1731323045370,27.06417132,215.41,215.34,23.776884]
[1731323045594,27.06417132,215.43,215.36,50.84105532]
[1731323045796,27.06417132,215.42,215.37,23.776884]
[1731323046193,27.06417132,215.42,215.35,23.776884]
[1731323046393,31.70627132,215.42,215.35,23.776884]
[1731323046582,27.06417132,215.42,215.35,23.776884]
[1731323046785,31.70627132,215.42,215.35,23.776884]
[1731323046983,27.06417132,215.41,215.34,23.776884]
[1731323047289,27.06417132,215.42,215.34,50.84105532]
[1731323047807,27.06417132,215.42,215.36,23.776884]
[1731323048308,27.06417132,215.44,215.38,23.776884]
[1731323048596,27.06417132,215.46,215.38,50.84105532]
[1731323048784,27.06417132,215.46,215.39,27.06417132]
[1731323048988,27.06417132,215.46,215.4,23.776884]
[1731323049188,31.70507132,215.48,215.4,50.84105532]
[1731323049392,27.06417132,215.48,215.4,50.84105532]
[1731323050790,27.06417132,215.5,215.45,23.776884]
[1731323051196,27.06417132,215.5,215.43,23.776884]
[1731323051910,4.6397,215.53,215.44,27.06417132]
[1731323051911,27.06417132,215.52,215.44,27.06417132]
[1731323052085,31.70387132,215.53,215.45,50.84105532]
[1731323052407,31.70357132,215.55,215.48,27.06417132]
[1731323052582,31.70357132,215.55,215.49,23.776884]
[1731323052901,27.06417132,215.55,215.49,23.776884]
[1731323053097,4.639,215.57,215.49,23.776884]
[1731323053098,27.06417132,215.56,215.49,23.776884]
[1731323053594,27.06417132,215.55,215.49,23.776884]
[1731323054505,31.70327132,215.56,215.49,23.776884]
[1731323055307,27.06417132,215.59,215.52,23.776884]
[1731323055485,27.06417132,215.59,215.52,50.84105532]
[1731323055803,27.06417132,215.62,215.55,23.776884]
[1731323055986,4.6372,215.65,215.55,23.776884]
[1731323055987,27.06417132,215.58,215.55,23.776884]
[1731323056187,27.06417132,215.6,215.53,23.776884]
[1731323056404,16.23,215.65,215.51,23.776884]
[1731323056405,27.06417132,215.58,215.51,23.776884]
[1731323057289,31.70277132,215.58,215.51,23.776884]
[1731323057785,4.6386,215.58,215.52,27.06417132]
[1731323057988,4.6386,215.58,215.53,23.776884]
[1731323059281,31.70277132,215.58,215.53,23.776884]
[1731323059498,27.06417132,215.56,215.49,23.776884]
[1731323060200,27.06417132,215.56,215.51,23.776884]
[1731323062700,31.70327132,215.56,215.51,23.776884]
[1731323063905,4.6391,215.56,215.51,23.776884]
[1731323064104,31.70327132,215.56,215.51,23.776884]
[1731323064407,31.70327132,215.56,215.49,23.776884]
[1731323064987,27.06417132,215.56,215.49,23.776884]
[1731323065707,27.06417132,215.58,215.51,23.776884]